[Event "Early-Titled-Tuesday-Blitz-February-27-2024"]
[Site "Chess.com"]
[Date "2024.02.27"]
[Round "11"]
[White "Tugrik1969"]
[Black "MaxLeto"]
[Result "1-0"]
[WhiteElo "2393"]
[BlackElo "2498"]
[TimeControl "180+1"]
[EndTime "10:06:52 PST"]
[Termination "Tugrik1969 won by checkmate"]

1. d4 {[%clk 0:02:58.9]} 1... h5 {[%clk 0:02:59]} 2. e4 {[%clk 0:02:52.6]} 2...
h4 {[%clk 0:02:55]} 3. h3 {[%clk 0:02:50.9]} 3... d5 {[%clk 0:02:49.2]} 4. exd5
{[%clk 0:02:44.1]} 4... Qxd5 {[%clk 0:02:50.1]} 5. Nf3 {[%clk 0:02:40.1]} 5...
Bf5 {[%clk 0:02:49.7]} 6. Be2 {[%clk 0:02:29.6]} 6... e6 {[%clk 0:02:49.5]} 7.
O-O {[%clk 0:02:27.2]} 7... Nc6 {[%clk 0:02:47]} 8. c4 {[%clk 0:02:27.1]} 8...
Qd7 {[%clk 0:02:42.4]} 9. d5 {[%clk 0:02:15.9]} 9... exd5 {[%clk 0:02:36.3]} 10.
cxd5 {[%clk 0:02:15.6]} 10... Nb4 {[%clk 0:02:36.9]} 11. Nc3 {[%clk 0:02:09.6]}
11... O-O-O {[%clk 0:02:31.8]} 12. Bf4 {[%clk 0:01:45.9]} 12... Nxd5 {[%clk
0:02:20.3]} 13. Nxd5 {[%clk 0:01:39.7]} 13... Qxd5 {[%clk 0:02:21.2]} 14. Rc1
{[%clk 0:01:30.9]} 14... Bc5 {[%clk 0:01:34.9]} 15. Qxd5 {[%clk 0:01:20.7]}
15... Rxd5 {[%clk 0:01:34.1]} 16. Bc4 {[%clk 0:01:21.3]} 16... Rd7 {[%clk
0:01:30.8]} 17. Ne5 {[%clk 0:01:14.3]} 17... Re7 {[%clk 0:01:27.8]} 18. Nxf7
{[%clk 0:00:52.3]} 18... Rh5 {[%clk 0:01:27.7]} 19. Ng5 {[%clk 0:00:44.3]} 19...
Nf6 {[%clk 0:01:21.1]} 20. Bf7 {[%clk 0:00:28.6]} 20... Rxg5 {[%clk 0:00:58.1]}
21. Bxg5 {[%clk 0:00:29.5]} 21... Bd4 {[%clk 0:00:58.6]} 22. Bc4 {[%clk
0:00:25]} 22... Bxb2 {[%clk 0:00:56.4]} 23. Rce1 {[%clk 0:00:24.9]} 23... Rd7
{[%clk 0:00:46.6]} 24. Bxh4 {[%clk 0:00:21.8]} 24... c6 {[%clk 0:00:46]} 25. g4
{[%clk 0:00:21.8]} 25... b5 {[%clk 0:00:34.3]} 26. Bb3 {[%clk 0:00:19.6]} 26...
Bd3 {[%clk 0:00:28.8]} 27. Be6 {[%clk 0:00:19.3]} 27... a5 {[%clk 0:00:20.5]}
28. Re3 {[%clk 0:00:17.1]} 28... Bxf1 {[%clk 0:00:20.5]} 29. Kxf1 {[%clk
0:00:17.4]} 29... Kc7 {[%clk 0:00:20.1]} 30. Bxd7 {[%clk 0:00:16]} 30... Nxd7
{[%clk 0:00:21]} 31. Bg3+ {[%clk 0:00:16]} 31... Kb6 {[%clk 0:00:20.7]} 32. h4
{[%clk 0:00:14.9]} 32... a4 {[%clk 0:00:20.2]} 33. h5 {[%clk 0:00:14.1]} 33...
Nf6 {[%clk 0:00:20.6]} 34. f3 {[%clk 0:00:13.1]} 34... Nd5 {[%clk 0:00:20.8]}
35. Re2 {[%clk 0:00:12]} 35... a3 {[%clk 0:00:21]} 36. Be5 {[%clk 0:00:09.2]}
36... Bxe5 {[%clk 0:00:08.3]} 37. Rxe5 {[%clk 0:00:10.1]} 37... Nc3 {[%clk
0:00:09.2]} 38. Re2 {[%clk 0:00:09.8]} 38... Nxe2 {[%clk 0:00:07.4]} 39. Kxe2
{[%clk 0:00:09.2]} 39... b4 {[%clk 0:00:07.8]} 40. g5 {[%clk 0:00:06.1]} 40...
b3 {[%clk 0:00:08.4]} 41. h6 {[%clk 0:00:06.4]} 41... gxh6 {[%clk 0:00:05.9]}
42. g6 {[%clk 0:00:06.3]} 42... bxa2 {[%clk 0:00:05.4]} 43. g7 {[%clk
0:00:06.8]} 43... a1=Q {[%clk 0:00:06.1]} 44. g8=Q {[%clk 0:00:06.9]} 44... Qb2+
{[%clk 0:00:07]} 45. Ke3 {[%clk 0:00:06.5]} 45... a2 {[%clk 0:00:07.2]} 46. Qb8+
{[%clk 0:00:05.5]} 46... Kc5 {[%clk 0:00:03.2]} 47. Qxb2 {[%clk 0:00:05.8]}
47... h5 {[%clk 0:00:03.1]} 48. Qxa2 {[%clk 0:00:06.4]} 48... h4 {[%clk
0:00:02.4]} 49. Qh2 {[%clk 0:00:07.3]} 49... h3 {[%clk 0:00:02.2]} 50. Qxh3
{[%clk 0:00:07.4]} 50... Kb4 {[%clk 0:00:02.1]} 51. Qf5 {[%clk 0:00:07.1]} 51...
c5 {[%clk 0:00:02.5]} 52. Kd2 {[%clk 0:00:07.3]} 52... c4 {[%clk 0:00:02.8]} 53.
Qe4 {[%clk 0:00:07.6]} 53... Kb3 {[%clk 0:00:02.6]} 54. Qb7+ {[%clk 0:00:08.2]}
54... Ka2 {[%clk 0:00:02]} 55. Kc2 {[%clk 0:00:08.3]} 55... c3 {[%clk
0:00:02.6]} 56. Qa7# {[%clk 0:00:08.8]} 1-0

[Event "Early-Titled-Tuesday-Blitz-February-27-2024"]
[Site "Chess.com"]
[Date "2024.02.27"]
[Round "11"]
[White "LileKoridze"]
[Black "Fluffey"]
[Result "1-0"]
[WhiteElo "2431"]
[BlackElo "2504"]
[TimeControl "180+1"]
[EndTime "10:06:55 PST"]
[Termination "LileKoridze won by resignation"]

1. d4 {[%clk 0:03:00.9]} 1... Nf6 {[%clk 0:02:59.5]} 2. c4 {[%clk 0:03:01.2]}
2... b6 {[%clk 0:02:58.5]} 3. Nf3 {[%clk 0:03:00.1]} 3... Bb7 {[%clk 0:02:59.1]}
4. g3 {[%clk 0:03:00.7]} 4... Bxf3 {[%clk 0:02:57.4]} 5. exf3 {[%clk 0:03:00.7]}
5... e6 {[%clk 0:02:57.7]} 6. Bg2 {[%clk 0:03:00.8]} 6... Bb4+ {[%clk 0:02:58]}
7. Bd2 {[%clk 0:03:00.5]} 7... Bxd2+ {[%clk 0:02:57.4]} 8. Nxd2 {[%clk
0:03:01.4]} 8... d5 {[%clk 0:02:57.4]} 9. O-O {[%clk 0:03:01.7]} 9... O-O {[%clk
0:02:56.9]} 10. f4 {[%clk 0:03:01.9]} 10... Nc6 {[%clk 0:02:56.2]} 11. cxd5
{[%clk 0:02:58.5]} 11... Nxd5 {[%clk 0:02:55.8]} 12. Nc4 {[%clk 0:02:58.2]}
12... Nce7 {[%clk 0:02:53.1]} 13. Rc1 {[%clk 0:02:55.7]} 13... a5 {[%clk
0:02:41.1]} 14. Ne5 {[%clk 0:02:55.1]} 14... Ra7 {[%clk 0:02:39.3]} 15. a3
{[%clk 0:02:43.5]} 15... Qd6 {[%clk 0:02:39.3]} 16. Qc2 {[%clk 0:02:39.1]} 16...
g6 {[%clk 0:02:34.4]} 17. Rfd1 {[%clk 0:02:13.7]} 17... a4 {[%clk 0:02:27.8]}
18. Ng4 {[%clk 0:02:02.5]} 18... Kg7 {[%clk 0:02:25.8]} 19. Ne3 {[%clk
0:02:02.6]} 19... Rd8 {[%clk 0:02:06.4]} 20. Nc4 {[%clk 0:02:02.5]} 20... Qd7
{[%clk 0:02:05.9]} 21. Ne5 {[%clk 0:02:02]} 21... Qb5 {[%clk 0:02:05.2]} 22. Bf1
{[%clk 0:01:58.8]} 22... Qa5 {[%clk 0:01:58.2]} 23. Nc4 {[%clk 0:01:44.4]} 23...
Qa6 {[%clk 0:01:37.4]} 24. Nd6 {[%clk 0:01:29.5]} 24... Qa5 {[%clk 0:01:37]} 25.
Nc4 {[%clk 0:01:11.4]} 25... Qb5 {[%clk 0:01:37.2]} 26. Ne5 {[%clk 0:01:08.2]}
26... Qe8 {[%clk 0:01:32.2]} 27. Nc4 {[%clk 0:01:06.5]} 27... b5 {[%clk
0:01:26.9]} 28. Ne5 {[%clk 0:01:04.9]} 28... Rb8 {[%clk 0:01:22.7]} 29. Qc5
{[%clk 0:01:03.7]} 29... Rab7 {[%clk 0:01:13]} 30. Nd3 {[%clk 0:00:58.1]} 30...
b4 {[%clk 0:00:59.6]} 31. axb4 {[%clk 0:00:57]} 31... Nxb4 {[%clk 0:00:58.9]}
32. Nxb4 {[%clk 0:00:54.8]} 32... Rxb4 {[%clk 0:00:59.5]} 33. Qxc7 {[%clk
0:00:40.7]} 33... Rxb2 {[%clk 0:00:51.2]} 34. Ra1 {[%clk 0:00:35.8]} 34... Nd5
{[%clk 0:00:48]} 35. Qc4 {[%clk 0:00:34.7]} 35... R2b4 {[%clk 0:00:43.3]} 36.
Qd3 {[%clk 0:00:34.5]} 36... Qd7 {[%clk 0:00:33]} 37. Rdc1 {[%clk 0:00:29.2]}
37... Ra8 {[%clk 0:00:28.8]} 38. Ra3 {[%clk 0:00:28.2]} 38... h5 {[%clk
0:00:24.4]} 39. Rc4 {[%clk 0:00:25.7]} 39... Qb7 {[%clk 0:00:19.1]} 40. Rxb4
{[%clk 0:00:24.3]} 40... Qxb4 {[%clk 0:00:20]} 41. Ra1 {[%clk 0:00:15.8]} 41...
a3 {[%clk 0:00:19.4]} 42. Bg2 {[%clk 0:00:15.2]} 42... a2 {[%clk 0:00:17.5]} 43.
Qc2 {[%clk 0:00:10.6]} 43... Qxd4 {[%clk 0:00:08.9]} 44. Rxa2 {[%clk 0:00:09.3]}
44... Rxa2 {[%clk 0:00:08.7]} 45. Qxa2 {[%clk 0:00:10.1]} 45... Qd1+ {[%clk
0:00:08.5]} 46. Bf1 {[%clk 0:00:10.3]} 46... h4 {[%clk 0:00:08.8]} 47. Qb2+
{[%clk 0:00:10.3]} 47... Kg8 {[%clk 0:00:06.6]} 48. Qb8+ {[%clk 0:00:09.1]}
48... Kh7 {[%clk 0:00:06]} 49. Qf8 {[%clk 0:00:08.7]} 49... h3 {[%clk
0:00:01.3]} 50. Qxf7+ {[%clk 0:00:08.1]} 50... Kh6 {[%clk 0:00:02.2]} 51. Qf8+
{[%clk 0:00:07.5]} 51... Kh7 {[%clk 0:00:02.2]} 52. Qf7+ {[%clk 0:00:06.7]}
52... Kh6 {[%clk 0:00:02.8]} 53. Qxe6 {[%clk 0:00:06.4]} 53... Nc3 {[%clk
0:00:02.3]} 54. Qxh3+ {[%clk 0:00:06.5]} 54... Kg7 {[%clk 0:00:03.2]} 55. Qe6
{[%clk 0:00:05]} 55... Nb1 {[%clk 0:00:02.6]} 56. Qe5+ {[%clk 0:00:04.9]} 56...
Kf7 {[%clk 0:00:02.3]} 57. Kg2 {[%clk 0:00:05.3]} 57... Nd2 {[%clk 0:00:02.8]}
58. Bd3 {[%clk 0:00:02.7]} 58... Qc2 {[%clk 0:00:02]} 59. Bxc2 {[%clk
0:00:02.6]} 1-0

[Event "Early-Titled-Tuesday-Blitz-February-27-2024"]
[Site "Chess.com"]
[Date "2024.02.27"]
[Round "11"]
[White "ImportedItalianMaple"]
[Black "Bkmzzzzz"]
[Result "1/2-1/2"]
[WhiteElo "2525"]
[BlackElo "2397"]
[TimeControl "180+1"]
[EndTime "10:06:55 PST"]
[Termination "Game drawn by repetition"]

1. Nf3 {[%clk 0:03:00.9]} 1... d6 {[%clk 0:02:59.7]} 2. d4 {[%clk 0:02:59.9]}
2... Nd7 {[%clk 0:02:59.4]} 3. g3 {[%clk 0:02:59.7]} 3... e5 {[%clk 0:02:57.6]}
4. Bg2 {[%clk 0:03:00]} 4... f5 {[%clk 0:02:51.7]} 5. O-O {[%clk 0:02:53]} 5...
Ngf6 {[%clk 0:02:51]} 6. c4 {[%clk 0:02:45.6]} 6... g6 {[%clk 0:02:45.9]} 7.
dxe5 {[%clk 0:02:38.4]} 7... Nxe5 {[%clk 0:02:35.4]} 8. Nxe5 {[%clk 0:02:36.9]}
8... dxe5 {[%clk 0:02:36.3]} 9. Qxd8+ {[%clk 0:02:37]} 9... Kxd8 {[%clk
0:02:37.2]} 10. Rd1+ {[%clk 0:02:32.4]} 10... Ke7 {[%clk 0:02:36.1]} 11. Nc3
{[%clk 0:02:30.3]} 11... c6 {[%clk 0:02:35.4]} 12. b3 {[%clk 0:02:27.3]} 12...
Be6 {[%clk 0:02:32.6]} 13. e4 {[%clk 0:02:05.2]} 13... Kf7 {[%clk 0:02:10.6]}
14. Bb2 {[%clk 0:02:01.2]} 14... Bb4 {[%clk 0:01:37]} 15. a3 {[%clk 0:01:44.5]}
15... Bxc3 {[%clk 0:01:36.6]} 16. Bxc3 {[%clk 0:01:44.7]} 16... Nxe4 {[%clk
0:01:37.3]} 17. Bxe5 {[%clk 0:01:41.8]} 17... Rhe8 {[%clk 0:01:36.1]} 18. Bb2
{[%clk 0:01:32.7]} 18... Nc5 {[%clk 0:01:33.6]} 19. Rab1 {[%clk 0:00:58.1]}
19... Nxb3 {[%clk 0:01:27.1]} 20. Bc3 {[%clk 0:00:55.2]} 20... Bxc4 {[%clk
0:01:19.9]} 21. Rd7+ {[%clk 0:00:52.1]} 21... Re7 {[%clk 0:01:19.1]} 22. Rbd1
{[%clk 0:00:52.8]} 22... Re8 {[%clk 0:01:13.1]} 23. R7d6 {[%clk 0:00:33.6]}
23... Be6 {[%clk 0:00:40.6]} 24. Bb4 {[%clk 0:00:28.4]} 24... c5 {[%clk
0:00:40.5]} 25. Bc3 {[%clk 0:00:28.4]} 25... b6 {[%clk 0:00:40.1]} 26. h4 {[%clk
0:00:27.5]} 26... h5 {[%clk 0:00:34.5]} 27. Bf3 {[%clk 0:00:25.5]} 27... Nd4
{[%clk 0:00:28.2]} 28. Bxd4 {[%clk 0:00:25]} 28... cxd4 {[%clk 0:00:29.1]} 29.
R1xd4 {[%clk 0:00:25.5]} 29... Rc8 {[%clk 0:00:27.5]} 30. a4 {[%clk 0:00:21.6]}
30... Rc3 {[%clk 0:00:25.9]} 31. Kg2 {[%clk 0:00:22]} 31... Rec7 {[%clk
0:00:25.2]} 32. a5 {[%clk 0:00:20.5]} 32... bxa5 {[%clk 0:00:21.4]} 33. Ra6
{[%clk 0:00:20.4]} 33... R3c5 {[%clk 0:00:20.4]} 34. Ra4 {[%clk 0:00:19.6]}
34... Bc8 {[%clk 0:00:20.2]} 35. R6xa5 {[%clk 0:00:19.7]} 35... Rxa5 {[%clk
0:00:19.8]} 36. Rxa5 {[%clk 0:00:20.6]} 36... a6 {[%clk 0:00:19.6]} 37. Be2
{[%clk 0:00:19.2]} 37... Rc6 {[%clk 0:00:19.2]} 38. Bf3 {[%clk 0:00:18.6]} 38...
Rb6 {[%clk 0:00:19.6]} 39. Bd5+ {[%clk 0:00:18.5]} 39... Ke7 {[%clk 0:00:19.7]}
40. Rc5 {[%clk 0:00:18.5]} 40... Kd6 {[%clk 0:00:19.8]} 41. Rxc8 {[%clk
0:00:17.6]} 41... Kxd5 {[%clk 0:00:20.3]} 42. Rd8+ {[%clk 0:00:17.8]} 42... Kc5
{[%clk 0:00:19.5]} 43. Kf3 {[%clk 0:00:18]} 43... Kb4 {[%clk 0:00:19.7]} 44. Ke3
{[%clk 0:00:17.7]} 44... a5 {[%clk 0:00:20.1]} 45. Kd2 {[%clk 0:00:18]} 45...
Kb3 {[%clk 0:00:19.7]} 46. Kc1 {[%clk 0:00:17.7]} 46... a4 {[%clk 0:00:19.2]}
47. Kb1 {[%clk 0:00:18.2]} 47... a3 {[%clk 0:00:19]} 48. Ka1 {[%clk 0:00:17]}
48... Ra6 {[%clk 0:00:19.1]} 49. Rd3+ {[%clk 0:00:17]} 49... Kc2 {[%clk
0:00:18.6]} 50. Rd8 {[%clk 0:00:15.5]} 50... Kc3 {[%clk 0:00:18.9]} 51. Ka2
{[%clk 0:00:15.9]} 51... Kc4 {[%clk 0:00:19.3]} 52. Rc8+ {[%clk 0:00:15.6]}
52... Kd4 {[%clk 0:00:19.3]} 53. Rc2 {[%clk 0:00:15.4]} 53... Ke4 {[%clk
0:00:18.9]} 54. Rc3 {[%clk 0:00:14.4]} 54... Kd4 {[%clk 0:00:18.7]} 55. Rb3
{[%clk 0:00:14.5]} 55... Ra5 {[%clk 0:00:18.8]} 56. Rb6 {[%clk 0:00:12.6]} 56...
Ke4 {[%clk 0:00:18.9]} 57. Rxg6 {[%clk 0:00:12.7]} 57... Kf3 {[%clk 0:00:19.4]}
58. Rg5 {[%clk 0:00:11.7]} 58... Kxf2 {[%clk 0:00:19.8]} 59. Rxh5 {[%clk
0:00:12.3]} 59... Kxg3 {[%clk 0:00:20.5]} 60. Rh8 {[%clk 0:00:12.3]} 60... f4
{[%clk 0:00:20.5]} 61. h5 {[%clk 0:00:13.1]} 61... f3 {[%clk 0:00:21]} 62. h6
{[%clk 0:00:12.5]} 62... f2 {[%clk 0:00:21.4]} 63. Rf8 {[%clk 0:00:13]} 63...
Kg2 {[%clk 0:00:20.3]} 64. h7 {[%clk 0:00:12.8]} 64... Rh5 {[%clk 0:00:19.4]}
65. Rg8+ {[%clk 0:00:12]} 65... Kh1 {[%clk 0:00:19.1]} 66. h8=Q {[%clk 0:00:12]}
66... Rxh8 {[%clk 0:00:18.3]} 67. Rxh8+ {[%clk 0:00:12.9]} 67... Kg1 {[%clk
0:00:18.6]} 68. Rg8+ {[%clk 0:00:13.6]} 68... Kh2 {[%clk 0:00:19]} 69. Rh8+
{[%clk 0:00:14.1]} 69... Kg2 {[%clk 0:00:19.3]} 70. Rg8+ {[%clk 0:00:14.7]}
70... Kh2 {[%clk 0:00:19.9]} 71. Rh8+ {[%clk 0:00:15.2]} 71... Kg2 {[%clk
0:00:20.3]} 72. Rg8+ {[%clk 0:00:15.9]} 72... Kh2 {[%clk 0:00:19.9]} 1/2-1/2

[Event "Early-Titled-Tuesday-Blitz-February-27-2024"]
[Site "Chess.com"]
[Date "2024.02.27"]
[Round "11"]
[White "Doublekk14"]
[Black "ATM622"]
[Result "1/2-1/2"]
[WhiteElo "2343"]
[BlackElo "2531"]
[TimeControl "180+1"]
[EndTime "10:06:57 PST"]
[Termination "Game drawn - insufficient material"]

1. c4 {[%clk 0:01:52.3]} 1... e6 {[%clk 0:02:59.3]} 2. e4 {[%clk 0:01:52]} 2...
d5 {[%clk 0:02:57.3]} 3. exd5 {[%clk 0:01:52.2]} 3... exd5 {[%clk 0:02:57.7]} 4.
d4 {[%clk 0:01:53.1]} 4... Nf6 {[%clk 0:02:57.5]} 5. Nc3 {[%clk 0:01:52.8]} 5...
Bb4 {[%clk 0:02:52.6]} 6. Nf3 {[%clk 0:01:52.2]} 6... O-O {[%clk 0:02:52.2]} 7.
Be2 {[%clk 0:01:52.7]} 7... dxc4 {[%clk 0:02:50.2]} 8. O-O {[%clk 0:01:51.4]}
8... c5 {[%clk 0:02:50.1]} 9. Bxc4 {[%clk 0:01:48.1]} 9... cxd4 {[%clk
0:02:50.1]} 10. Qxd4 {[%clk 0:01:48.2]} 10... Qxd4 {[%clk 0:02:49.4]} 11. Nxd4
{[%clk 0:01:48.2]} 11... Rd8 {[%clk 0:02:49.7]} 12. Ndb5 {[%clk 0:01:44.5]}
12... Na6 {[%clk 0:02:49.6]} 13. a3 {[%clk 0:01:43.4]} 13... Bf8 {[%clk
0:02:46.7]} 14. Bg5 {[%clk 0:01:42.9]} 14... Be6 {[%clk 0:02:43.2]} 15. Bxe6
{[%clk 0:01:41.9]} 15... fxe6 {[%clk 0:02:43.1]} 16. Rfe1 {[%clk 0:01:42.3]}
16... Kf7 {[%clk 0:02:39.4]} 17. Rad1 {[%clk 0:01:11.2]} 17... Be7 {[%clk
0:02:33.5]} 18. b4 {[%clk 0:01:02.5]} 18... h6 {[%clk 0:01:49.4]} 19. Be3 {[%clk
0:01:00.2]} 19... Rac8 {[%clk 0:01:43.2]} 20. Rxd8 {[%clk 0:00:57.8]} 20... Rxd8
{[%clk 0:01:43.3]} 21. Bxa7 {[%clk 0:00:55.3]} 21... Rd3 {[%clk 0:01:39.8]} 22.
Re3 {[%clk 0:00:47.4]} 22... Rd2 {[%clk 0:01:36.4]} 23. Re2 {[%clk 0:00:46.6]}
23... Rd3 {[%clk 0:01:32.4]} 24. Re3 {[%clk 0:00:44.2]} 24... Rd2 {[%clk
0:01:30]} 25. Re2 {[%clk 0:00:43.2]} 25... Rd7 {[%clk 0:01:29.8]} 26. h3 {[%clk
0:00:33.9]} 26... Nd5 {[%clk 0:01:22.3]} 27. Nxd5 {[%clk 0:00:30.5]} 27... Rxd5
{[%clk 0:01:22.5]} 28. Nd4 {[%clk 0:00:30.6]} 28... e5 {[%clk 0:01:19.3]} 29.
Nf3 {[%clk 0:00:30.6]} 29... Bf6 {[%clk 0:01:17.5]} 30. Rd2 {[%clk 0:00:30.9]}
30... Ke6 {[%clk 0:01:15.1]} 31. Kf1 {[%clk 0:00:29.2]} 31... e4 {[%clk
0:01:13.5]} 32. Rxd5 {[%clk 0:00:29.3]} 32... Kxd5 {[%clk 0:01:13.2]} 33. Nd2
{[%clk 0:00:29.3]} 33... Bb2 {[%clk 0:01:11.1]} 34. b5 {[%clk 0:00:29.1]} 34...
Nc7 {[%clk 0:01:08.2]} 35. a4 {[%clk 0:00:29.2]} 35... Bc3 {[%clk 0:01:04.9]}
36. Ke2 {[%clk 0:00:28.6]} 36... Ne6 {[%clk 0:01:05.3]} 37. Be3 {[%clk
0:00:27.8]} 37... Bxd2 {[%clk 0:00:53.5]} 38. Kxd2 {[%clk 0:00:27.2]} 38... Kc4
{[%clk 0:00:53.5]} 39. Ke2 {[%clk 0:00:17.2]} 39... Kb4 {[%clk 0:00:49.2]} 40.
f3 {[%clk 0:00:17.4]} 40... exf3+ {[%clk 0:00:46.4]} 41. Kxf3 {[%clk 0:00:17.6]}
41... Kxa4 {[%clk 0:00:46.7]} 42. b6 {[%clk 0:00:17.8]} 42... Kb5 {[%clk
0:00:38.7]} 43. Ke4 {[%clk 0:00:18]} 43... Nc5+ {[%clk 0:00:36.9]} 44. Kf5
{[%clk 0:00:18.2]} 44... Kxb6 {[%clk 0:00:25]} 45. Kg6 {[%clk 0:00:18.3]} 45...
Kc6 {[%clk 0:00:16.7]} 46. Kxg7 {[%clk 0:00:15.9]} 46... h5 {[%clk 0:00:16.4]}
47. Kg6 {[%clk 0:00:15.4]} 47... h4 {[%clk 0:00:16.7]} 48. Kg5 {[%clk
0:00:15.4]} 48... b5 {[%clk 0:00:14]} 49. Kxh4 {[%clk 0:00:15.4]} 49... b4
{[%clk 0:00:08.6]} 50. Bd2 {[%clk 0:00:14.1]} 50... b3 {[%clk 0:00:06.7]} 51.
Bc3 {[%clk 0:00:14.4]} 51... Na4 {[%clk 0:00:07.1]} 52. Bg7 {[%clk 0:00:14]}
52... b2 {[%clk 0:00:06.9]} 53. Bxb2 {[%clk 0:00:13.7]} 53... Nxb2 {[%clk
0:00:07.8]} 54. Kg5 {[%clk 0:00:14.1]} 54... Kd7 {[%clk 0:00:07.9]} 55. Kg6
{[%clk 0:00:13.2]} 55... Ke7 {[%clk 0:00:06.8]} 56. Kg7 {[%clk 0:00:13.2]} 56...
Nd3 {[%clk 0:00:06.4]} 57. g4 {[%clk 0:00:12.6]} 57... Ne5 {[%clk 0:00:04.3]}
58. g5 {[%clk 0:00:12.1]} 58... Ke6 {[%clk 0:00:04.2]} 59. h4 {[%clk 0:00:11.7]}
59... Kf5 {[%clk 0:00:04.5]} 60. h5 {[%clk 0:00:10.9]} 60... Kxg5 {[%clk
0:00:04.8]} 61. h6 {[%clk 0:00:11.2]} 61... Ng6 {[%clk 0:00:05.3]} 62. h7 {[%clk
0:00:11.5]} 62... Kh5 {[%clk 0:00:05.7]} 63. h8=Q+ {[%clk 0:00:11.2]} 63... Nxh8
{[%clk 0:00:06]} 1/2-1/2

[Event "Early-Titled-Tuesday-Blitz-February-27-2024"]
[Site "Chess.com"]
[Date "2024.02.27"]
[Round "11"]
[White "Chessbard1972"]
[Black "CarlosjPineror"]
[Result "0-1"]
[WhiteElo "2453"]
[BlackElo "2550"]
[TimeControl "180+1"]
[EndTime "10:07:02 PST"]
[Termination "CarlosjPineror won on time"]

1. d4 {[%clk 0:02:48.3]} 1... Nf6 {[%clk 0:02:59.7]} 2. c4 {[%clk 0:02:47.8]}
2... e6 {[%clk 0:02:59.9]} 3. Nf3 {[%clk 0:02:47.2]} 3... Bb4+ {[%clk
0:03:00.5]} 4. Nbd2 {[%clk 0:02:45.6]} 4... Qe7 {[%clk 0:03:01.1]} 5. a3 {[%clk
0:02:45.4]} 5... Bxd2+ {[%clk 0:03:00.1]} 6. Bxd2 {[%clk 0:02:45.8]} 6... b6
{[%clk 0:02:59.8]} 7. Bf4 {[%clk 0:02:44]} 7... Bb7 {[%clk 0:02:59.9]} 8. e3
{[%clk 0:02:44.3]} 8... d6 {[%clk 0:02:57.1]} 9. h3 {[%clk 0:02:43.3]} 9... O-O
{[%clk 0:02:57]} 10. Be2 {[%clk 0:02:42.7]} 10... Nbd7 {[%clk 0:02:57.6]} 11.
Bh2 {[%clk 0:02:41.6]} 11... e5 {[%clk 0:02:55.9]} 12. O-O {[%clk 0:02:40.6]}
12... Rfe8 {[%clk 0:02:45.7]} 13. Re1 {[%clk 0:02:37.8]} 13... Ne4 {[%clk
0:02:45.7]} 14. Qc2 {[%clk 0:02:34.8]} 14... f5 {[%clk 0:02:37]} 15. b4 {[%clk
0:02:33.3]} 15... c5 {[%clk 0:01:38.1]} 16. dxe5 {[%clk 0:02:27.2]} 16... Nxe5
{[%clk 0:01:33.3]} 17. Nxe5 {[%clk 0:02:25.4]} 17... dxe5 {[%clk 0:01:33.4]} 18.
Bf3 {[%clk 0:02:23.7]} 18... Rad8 {[%clk 0:01:27.8]} 19. Red1 {[%clk 0:02:21.1]}
19... g6 {[%clk 0:01:18]} 20. b5 {[%clk 0:02:19.6]} 20... Kf7 {[%clk 0:01:09.3]}
21. a4 {[%clk 0:02:18.8]} 21... Ke6 {[%clk 0:00:46.6]} 22. a5 {[%clk 0:02:17.3]}
22... Rxd1+ {[%clk 0:00:47.2]} 23. Rxd1 {[%clk 0:02:13.8]} 23... Rd8 {[%clk
0:00:47.7]} 24. a6 {[%clk 0:01:59.3]} 24... Ba8 {[%clk 0:00:45.2]} 25. g4 {[%clk
0:01:44.8]} 25... Rxd1+ {[%clk 0:00:39.3]} 26. Qxd1 {[%clk 0:01:42.2]} 26... Qd6
{[%clk 0:00:39.7]} 27. Qxd6+ {[%clk 0:01:36.1]} 27... Kxd6 {[%clk 0:00:36.9]}
28. gxf5 {[%clk 0:01:31.7]} 28... gxf5 {[%clk 0:00:37.2]} 29. h4 {[%clk
0:01:21.4]} 29... Ke6 {[%clk 0:00:37]} 30. h5 {[%clk 0:01:20.2]} 30... h6 {[%clk
0:00:34.8]} 31. Bg2 {[%clk 0:01:12.5]} 31... Kd6 {[%clk 0:00:29.8]} 32. f4
{[%clk 0:01:09.8]} 32... Ke6 {[%clk 0:00:20]} 33. fxe5 {[%clk 0:01:09.2]} 33...
Nd2 {[%clk 0:00:18.8]} 34. Bxa8 {[%clk 0:01:06.5]} 34... Nxc4 {[%clk 0:00:19.7]}
35. Bf4 {[%clk 0:01:03.4]} 35... Na3 {[%clk 0:00:18.8]} 36. Bd5+ {[%clk
0:01:02.8]} 36... Kxd5 {[%clk 0:00:18.3]} 37. Bxh6 {[%clk 0:01:02.6]} 37... Kxe5
{[%clk 0:00:18.3]} 38. Bg7+ {[%clk 0:01:02.6]} 38... Ke6 {[%clk 0:00:18.3]} 39.
h6 {[%clk 0:01:03.2]} 39... Kf7 {[%clk 0:00:19]} 40. Be5 {[%clk 0:01:00.1]}
40... Kg6 {[%clk 0:00:17.9]} 41. Bb8 {[%clk 0:00:58.9]} 41... Nxb5 {[%clk
0:00:18.5]} 42. Bf4 {[%clk 0:00:55.3]} 42... c4 {[%clk 0:00:16.4]} 43. Kf2
{[%clk 0:00:54.4]} 43... Nc3 {[%clk 0:00:13.6]} 44. Ke1 {[%clk 0:00:52.6]} 44...
Nd5 {[%clk 0:00:13.6]} 45. Bb8 {[%clk 0:00:51.3]} 45... b5 {[%clk 0:00:14.1]}
46. Bxa7 {[%clk 0:00:51.5]} 46... Nb4 {[%clk 0:00:14.4]} 47. Bc5 {[%clk
0:00:44.3]} 47... Nxa6 {[%clk 0:00:14.8]} 48. Bd6 {[%clk 0:00:44.8]} 48... Kxh6
{[%clk 0:00:14.7]} 49. Kd2 {[%clk 0:00:41.5]} 49... Kg6 {[%clk 0:00:14.6]} 50.
Kc3 {[%clk 0:00:41.8]} 50... Kf6 {[%clk 0:00:15.2]} 51. Kd4 {[%clk 0:00:41.9]}
51... Ke6 {[%clk 0:00:15.8]} 52. Bf8 {[%clk 0:00:28.8]} 52... Kd7 {[%clk
0:00:12.2]} 53. Ke5 {[%clk 0:00:26.8]} 53... c3 {[%clk 0:00:12]} 54. Kxf5 {[%clk
0:00:23.6]} 54... b4 {[%clk 0:00:10.9]} 55. Bg7 {[%clk 0:00:21.5]} 55... c2
{[%clk 0:00:09.2]} 56. Bb2 {[%clk 0:00:20.9]} 56... b3 {[%clk 0:00:08.7]} 57. e4
{[%clk 0:00:19.1]} 57... Nb4 {[%clk 0:00:07.4]} 58. e5 {[%clk 0:00:17.7]} 58...
Nd3 {[%clk 0:00:07.6]} 59. Kf6 {[%clk 0:00:12.5]} 59... Ke8 {[%clk 0:00:07.2]}
60. Ba3 {[%clk 0:00:01.4]} 60... b2 {[%clk 0:00:06.9]} 61. Bxb2 {[%clk
0:00:01.3]} 61... Nxb2 {[%clk 0:00:07]} 62. e6 {[%clk 0:00:02.2]} 62... c1=Q
{[%clk 0:00:07.9]} 63. e7 {[%clk 0:00:03.1]} 63... Qc6+ {[%clk 0:00:07.8]} 0-1